[Event "36th European Club Cup 2021"]
[Site "Struga"]
[Date "2021.09.24"]
[Round "7.58"]
[White "Johannesson, Ingvar Thor"]
[Black "Mohr, Georg"]
[Result "1/2-1/2"]
[ECO "E99"]
[WhiteElo "2346"]
[BlackElo "2407"]
[Annotator "ChessBase"]
[PlyCount "102"]
[EventDate "2021.09.18"]
[EventType "team-tourn"]
[EventCountry "MKD"]
[SourceTitle "playchess.com"]
[Source "ChessBase"]
[SourceQuality "1"]
[TimeControl "40/5400+30:1800+30"]

1. d4 {[%emt 0:00:02]} Nf6 {[%emt 0:06:01]} 2. c4 {[%emt 0:01:31]} g6 {[%emt 0:
00:06]} 3. Nc3 {[%emt 0:00:09]} Bg7 {[%emt 0:00:03]} 4. e4 {[%emt 0:00:10]} d6
{[%emt 0:00:05]} 5. Nf3 {[%emt 0:00:21]} O-O {[%emt 0:00:07]} 6. Be2 {[%emt 0:
00:14]} e5 {[%emt 0:01:26]} 7. O-O {[%emt 0:01:07]} Nc6 {[%emt 0:11:33]} 8. d5
{[%emt 0:00:30]} Ne7 {[%emt 0:00:06]} 9. Ne1 {[%emt 0:01:07]} Nd7 {[%emt 0:00:
20]} 10. Nd3 {[%emt 0:00:13]} f5 {[%emt 0:00:27]} 11. Bd2 {[%emt 0:00:56]} Nf6
{[%emt 0:03:02]} 12. f3 {[%emt 0:01:30]} f4 {[%emt 0:07:02]} 13. c5 {[%emt 0:
03:18]} h5 {[%emt 0:06:34]} 14. Rc1 {[%emt 0:01:16]} g5 {[%emt 0:02:16]} 15.
Nb5 {[%emt 0:02:35]} Ne8 {[%emt 0:00:37]} 16. Ba5 {[%emt 0:00:13]} b6 {[%emt 0:
07:05]} 17. cxd6 {[%emt 0:00:18]} cxd6 {[%emt 0:00:34]} 18. Be1 {[%emt 0:00:11]
} a6 {[%emt 0:05:08]} 19. Nc3 {[%emt 0:01:35]} Nf6 {[%emt 0:23:11]} 20. Bf2 {
[%emt 0:11:18]} Nd7 {[%emt 0:03:55]} 21. Nb4 {[%emt 0:03:03]} Ng6 {[%emt 0:21:
22]} 22. Na4 {[%emt 0:08:13]} b5 {[%emt 0:00:00]} 23. Nc6 {[%emt 0:01:39]} Qe8
{[%emt 0:00:00]} 24. Nb6 {[%emt 0:01:29]} Nxb6 {[%emt 0:00:00]} 25. Bxb6 {
[%emt 0:00:04]} Bf6 {[%emt 0:00:00]} 26. a4 {[%emt 0:15:28]} bxa4 {[%emt 0:00:
00]} 27. Rc4 {[%emt 0:03:51]} Rf7 {[%emt 0:00:00]} 28. Rxa4 {[%emt 0:06:48]}
Rg7 {[%emt 0:00:00]} 29. h3 {[%emt 0:08:26]} Nh4 {[%emt 0:00:00]} 30. b4 {
[%emt 0:05:10]} Bd7 {[%emt 0:00:00]} 31. Bf2 {[%emt 0:11:28]} Qg6 {[%emt 0:00:
00]} 32. b5 {[%emt 0:01:39]} g4 {[%emt 0:00:00]} 33. fxg4 {[%emt 0:00:41]} Kh8
{[%emt 0:01:02]} 34. bxa6 {[%emt 0:01:56]} hxg4 {[%emt 0:01:04]} 35. Bxg4 {
[%emt 0:00:21]} Bxg4 36. Qxg4 {[%emt 0:00:34]} Qh6 {[%emt 0:01:04]} 37. Bxh4 {
[%emt 0:00:08]} Rxg4 {[%emt 0:02:51]} 38. Bxf6+ {[%emt 0:00:04]} Rg7 {[%emt 0:
00:10]} 39. Bxg7+ {[%emt 0:00:06]} Qxg7 {[%emt 0:00:05]} 40. a7 {[%emt 0:00:00]
} Qg3 {[%emt 0:00:00]} 41. Rb4 {[%emt 0:34:56]} Kh7 {[%emt 0:02:59]} 42. Rb8 {
[%emt 0:03:46]} Rxa7 {[%emt 0:01:16]} 43. Nxa7 {[%emt 0:01:07]} Qe3+ {[%emt 0:
00:06]} 44. Kh2 {[%emt 0:00:05]} Qxa7 {[%emt 0:00:13]} 45. Rb4 {[%emt 0:02:48]}
Qa3 {[%emt 0:03:21]} 46. Rb7+ {[%emt 0:00:08]} Kg6 {[%emt 0:00:35]} 47. Rbb1 {
[%emt 0:00:36]} Kg5 {[%emt 0:01:05]} 48. Rbe1 {[%emt 0:00:34]} Qc3 {[%emt 0:01:
04]} 49. Re2 {[%emt 0:00:09]} Qd3 {[%emt 0:00:33]} 50. Ree1 {[%emt 0:00:07]}
Qc3 {[%emt 0:00:08]} 51. Re2 {[%emt 0:00:08]} Qd3 {[%emt 0:00:05]} 1/2-1/2

[Event "36th European Club Cup 2021"]
[Site "Struga"]
[Date "2021.09.24"]
[Round "7.59"]
[White "Buzeti, Jernej"]
[Black "Mai, Alexander Oliver"]
[Result "1-0"]
[ECO "B67"]
[WhiteElo "2236"]
[BlackElo "2042"]
[Annotator "NA"]
[PlyCount "67"]
[EventDate "2021.09.18"]
[EventType "team-tourn"]
[EventCountry "MKD"]
[SourceTitle "playchess.com"]
[Source "ChessBase"]
[SourceQuality "1"]
[TimeControl "40/5400+30:1800+30"]

1. e4 {[%emt 0:00:02]} c5 {[%emt 0:01:07]} 2. Nf3 {[%emt 0:00:35]} d6 {[%emt 0:
00:04]} 3. d4 {[%emt 0:00:07]} cxd4 {[%emt 0:00:03]} 4. Nxd4 {[%emt 0:00:06]}
Nf6 {[%emt 0:00:03]} 5. Nc3 {[%emt 0:00:09]} Nc6 {[%emt 0:00:04]} 6. Bg5 {
[%emt 0:00:36]} e6 {[%emt 0:00:09]} 7. Qd2 {[%emt 0:00:31]} a6 {[%emt 0:00:14]}
8. O-O-O {[%emt 0:00:53]} Bd7 {[%emt 0:00:13]} 9. f3 {[%emt 0:05:00]} Nxd4 {
[%emt 0:00:37]} 10. Qxd4 {[%emt 0:00:14]} Be7 {[%emt 0:00:10]} 11. Qd2 {
[%emt 0:02:27]} b5 {[%emt 0:13:14]} 12. a3 {[%emt 0:22:27]} h6 {[%emt 0:08:44]}
13. Bf4 {[%emt 0:09:30]} e5 {[%emt 0:01:55]} 14. Be3 {[%emt 0:00:20]} Qc7 {
[%emt 0:15:32]} 15. g4 {[%emt 0:01:42]} Be6 {[%emt 0:04:15]} 16. h4 {[%emt 0:
03:39]} Qb7 {[%emt 0:13:34]} 17. Nd5 {[%emt 0:06:40]} Bxd5 {[%emt 0:02:45]} 18.
exd5 {[%emt 0:00:05]} Bd8 {[%emt 0:02:08]} 19. Bh3 {[%emt 0:11:04]} Bb6 {
[%emt 0:03:16]} 20. f4 {[%emt 0:04:28]} Nd7 {[%emt 0:02:02]} 21. g5 {[%emt 0:
01:52]} f6 {[%emt 0:02:27]} 22. Bxd7+ {[%emt 0:10:04]} Kxd7 {[%emt 0:00:14]}
23. gxf6 {[%emt 0:00:31]} gxf6 {[%emt 0:00:39]} 24. fxe5 {[%emt 0:00:44]} fxe5
{[%emt 0:01:05]} 25. Rhf1 {[%emt 0:05:45]} Bxe3 {[%emt 0:01:24]} 26. Qxe3 {
[%emt 0:00:05]} Rae8 {[%emt 0:03:37]} 27. Rf6 {[%emt 0:06:13]} Qc7 {[%emt 0:00:
14]} 28. Qh3+ {[%emt 0:03:39]} Kd8 {[%emt 0:00:14]} 29. Rdf1 {[%emt 0:02:38]}
Re7 {[%emt 0:00:07]} 30. Qg2 {[%emt 0:01:40]} Rhe8 {[%emt 0:01:26]} 31. Qg6 {
[%emt 0:00:43]} Kd7 {[%emt 0:00:21]} 32. R1f3 {[%emt 0:00:33]} Qc5 {[%emt 0:00:
22]} 33. Qg4+ {[%emt 0:00:28]} Kd8 {[%emt 0:00:06]} 34. Rc3 {[%emt 0:00:22]}
1-0

[Event "36th European Club Cup 2021"]
[Site "Struga"]
[Date "2021.09.24"]
[Round "7.60"]
[White "Jonsson, Gauti Pall"]
[Black "Bratkovic, Sham"]
[Result "1/2-1/2"]
[ECO "A36"]
[WhiteElo "2053"]
[BlackElo "2213"]
[Annotator "NA"]
[PlyCount "63"]
[EventDate "2021.09.18"]
[EventType "team-tourn"]
[EventCountry "MKD"]
[SourceTitle "playchess.com"]
[Source "ChessBase"]
[SourceQuality "1"]
[TimeControl "40/5400+30:1800+30"]

1. c4 {[%emt 0:00:37]} Nf6 {[%emt 0:01:44]} 2. Nc3 {[%emt 0:00:59]} g6 {
[%emt 0:02:25]} 3. e4 {[%emt 0:02:41]} d6 {[%emt 0:01:13]} 4. g3 {[%emt 0:01:
25]} Bg7 {[%emt 0:01:02]} 5. Bg2 {[%emt 0:00:52]} O-O {[%emt 0:00:56]} 6. Nge2
{[%emt 0:01:36]} c5 {[%emt 0:03:20]} 7. O-O {[%emt 0:01:42]} Nc6 {[%emt 0:00:
52]} 8. d3 {[%emt 0:01:22]} Ne8 {[%emt 0:06:58]} 9. Be3 {[%emt 0:04:49]} Nd4 {
[%emt 0:02:31]} 10. Qd2 {[%emt 0:05:36]} Qa5 {[%emt 0:05:14]} 11. Nxd4 {
[%emt 0:04:21]} cxd4 {[%emt 0:03:11]} 12. Nd5 {[%emt 0:05:18]} Qd8 {[%emt 0:01:
26]} 13. Bg5 {[%emt 0:02:15]} f6 {[%emt 0:01:29]} 14. Bh6 {[%emt 0:00:08]} Bxh6
{[%emt 0:17:00]} 15. Qxh6 {[%emt 0:00:10]} e6 {[%emt 0:05:00]} 16. Nf4 {
[%emt 0:03:50]} e5 {[%emt 0:08:59]} 17. Nd5 {[%emt 0:03:29]} Be6 {[%emt 0:01:
54]} 18. f4 {[%emt 0:04:05]} Bxd5 {[%emt 0:00:38]} 19. exd5 {[%emt 0:01:53]}
Ng7 {[%emt 0:02:38]} 20. fxe5 {[%emt 0:03:10]} fxe5 {[%emt 0:02:29]} 21. g4 {
[%emt 0:10:05]} Qe7 {[%emt 0:02:54]} 22. Be4 {[%emt 0:03:21]} a5 {[%emt 0:02:
42]} 23. h4 {[%emt 0:03:43]} b6 {[%emt 0:05:01]} 24. Kg2 {[%emt 0:01:43]} Rab8
{[%emt 0:08:07]} 25. Kg3 {[%emt 0:01:49]} Rxf1 {[%emt 0:00:45]} 26. Rxf1 {
[%emt 0:00:22]} Rf8 {[%emt 0:00:11]} 27. Rxf8+ {[%emt 0:01:44]} Qxf8 {[%emt 0:
00:08]} 28. Qg5 {[%emt 0:01:19]} Qf1 {[%emt 0:05:04]} 29. Qd8+ {[%emt 0:00:52]}
Qf8 {[%emt 0:03:09]} 30. Qg5 {[%emt 0:00:05]} Qf1 {[%emt 0:00:20]} 31. Qd8+ {
[%emt 0:11:42]} Qf8 {[%emt 0:00:43]} 32. Qg5 {[%emt 0:03:31]} 1/2-1/2